bitfinex-derivatives/quotes_SOLF0:USTF0_20250328
["timestamp","ask_amount","ask_price","bid_price","bid_amount"]
[1743156258109,0.05517711,130.39,130.38,15.56271746]
[1743156258307,28.02,130.46,130.38,15.56271746]
[1743156258709,7.6688,130.44,130.39,7.6711]
[1743156259106,35.6687,130.44,130.4,7.6708]
[1743156259309,28.0,130.44,130.38,15.56271746]
[1743156259513,0.05278307,130.43,130.41,0.05124336]
[1743156259713,7.6696,130.42,130.41,0.05124336]
[1743156260016,0.05278307,130.43,130.41,0.05124336]
[1743156260816,7.72208307,130.43,130.41,0.05124336]
[1743156261312,0.05278307,130.43,130.41,0.05124336]
[1743156261911,7.6696,130.42,130.41,0.05124336]
[1743156262108,0.05278307,130.43,130.41,0.05124336]
[1743156262708,7.72218307,130.43,130.41,0.05124336]
[1743156262910,35.74218307,130.43,130.41,0.05124336]
[1743156264418,38.03229232,130.43,130.41,0.05124336]
[1743156264920,45.70169232,130.43,130.41,0.05124336]
[1743156265313,38.03229232,130.43,130.41,0.05124336]
[1743156265619,7.6696,130.42,130.41,0.05124336]
[1743156268518,7.6707,130.41,130.38,7.6719]
[1743156268816,17.63020925,130.41,130.38,7.6719]
[1743156269315,7.6709,130.4,130.38,7.6719]
[1743156269714,0.05393326,130.4,130.38,7.6719]
[1743156270210,0.05393326,130.4,130.39,7.6714]
[1743156270414,0.05393326,130.4,130.38,9.95950925]
[1743156270617,0.05393326,130.4,130.37,9.95950925]
[1743156270825,0.05393326,130.4,130.38,7.672]
[1743156271726,0.05393326,130.4,130.39,7.6714]
[1743156272230,0.05393326,130.4,130.38,9.95950925]
[1743156272418,0.05393326,130.4,130.39,7.6714]
[1743156273727,0.05393326,130.4,130.39,17.63090925]
[1743156276820,11.95160925,130.46,130.43,7.669]
[1743156277325,47.49920925,130.46,130.43,7.669]
[1743156277728,19.61920925,130.46,130.43,7.669]
[1743156277929,47.55211387,130.46,130.43,7.71980246]
[1743156279025,0.05290462,130.46,130.43,10.01031171]
[1743156279224,0.05290462,130.46,130.44,9.95950925]
[1743156279427,0.05290462,130.46,130.45,9.95950925]
[1743156279727,0.05290462,130.46,130.45,17.62740925]
[1743156280131,116.71722507,130.49,130.45,9.95950925]
[1743156280329,116.71722507,130.49,130.48,17.62560925]
[1743156280530,116.71722507,130.49,130.48,9.95950925]
[1743156280731,39.49248928,130.52,130.49,7.6655]
[1743156281024,39.49248928,130.52,130.49,17.62500925]
[1743156281229,31.87933892,130.52,130.5,9.95950925]
[1743156281531,31.87933892,130.52,130.51,9.95950925]
[1743156281729,28.62353892,130.52,130.51,9.95950925]
[1743156281931,28.62353892,130.52,130.51,17.62380925]
[1743156282135,84.88863579,130.53,130.51,9.95950925]
[1743156282426,127.31435714,130.54,130.52,37.77950925]
[1743156282427,3.99358412,130.54,130.52,37.77950925]
[1743156282632,119.07875982,130.55,130.53,9.95950925]
[1743156282931,75.15670551,130.55,130.54,9.95950925]
[1743156283126,251.08633978,130.56,130.54,9.95950925]
[1743156283325,251.08633978,130.56,130.55,37.75950925]
[1743156283326,159.33670274,130.56,130.55,37.75950925]
[1743156283727,159.33670274,130.56,130.55,9.95950925]
[1743156284235,0.0579969,130.56,130.55,9.95950925]
[1743156284834,0.0579969,130.56,130.53,15.57591923]
[1743156285227,0.0579969,130.56,130.55,15.52456562]
[1743156286327,35.4995,130.6,130.55,15.52456562]
[1743156286625,35.4995,130.6,130.57,15.52456562]
[1743156286927,7.6595,130.6,130.57,15.52456562]
[1743156287324,27.86,130.62,130.57,15.52456562]
[1743156287529,0.05589789,130.6,130.57,15.5806788]
[1743156287833,7.71529789,130.6,130.57,15.5806788]
[1743156288231,0.05589789,130.6,130.57,15.5806788]
[1743156288436,7.71509789,130.6,130.57,15.5806788]
[1743156288942,0.05589789,130.6,130.57,15.5806788]
[1743156289134,0.05589789,130.6,130.57,23.2409788]
[1743156289832,0.05589789,130.6,130.58,7.6602]
[1743156290429,0.05589789,130.6,130.59,15.52456562]
[1743156292237,0.05589789,130.6,130.57,43.4406788]
[1743156292438,0.05589789,130.6,130.57,0.05611318]
[1743156293740,7.6597,130.59,130.57,0.05611318]
[1743156293941,0.05589789,130.6,130.57,0.05611318]
[1743156293942,0.05589789,130.6,130.57,15.5806788]
[1743156294334,0.05589789,130.6,130.57,23.2410788]
[1743156294849,7.71499789,130.6,130.57,23.2410788]
[1743156296044,7.71499789,130.6,130.57,15.5806788]
[1743156297741,7.71499789,130.6,130.57,23.2413788]
[1743156297939,27.86,130.64,130.57,23.2413788]
[1743156298841,27.86,130.64,130.58,7.6602]
[1743156299037,0.05293985,130.62,130.58,7.6602]
[1743156299237,0.05293985,130.62,130.6,0.05330546]
[1743156299838,7.6586,130.61,130.6,0.05330546]
[1743156300440,0.05293985,130.62,130.6,15.57787108]
[1743156300640,0.05293985,130.62,130.61,27.76]
[1743156301743,0.05293985,130.62,130.61,35.4185]
[1743156301947,2.1262,130.68,130.61,27.76]
[1743156302244,2.1262,130.68,130.63,15.52456562]
[1743156302745,7.6553,130.67,130.63,23.18176562]
[1743156303048,0.05234935,130.66,130.63,15.52456562]
[1743156303349,0.05234935,130.66,130.64,7.70603051]
[1743156303647,0.05234935,130.66,130.65,43.28456562]
[1743156303944,7.6529,130.71,130.65,43.28456562]
[1743156304143,45.33286562,130.75,130.67,15.52456562]
[1743156304739,7.6519,130.73,130.69,7.6537]
[1743156305241,0.0490831,130.72,130.7,7.71149654]
[1743156305637,0.0490831,130.72,130.7,0.05829654]
[1743156305837,0.0490831,130.72,130.71,7.6526]
[1743156306038,29.8562,130.77,130.71,15.52456562]
[1743156306241,27.76,130.77,130.71,43.28456562]
[1743156306540,27.76,130.77,130.73,7.651]
[1743156306541,35.4095,130.77,130.73,7.651]
[1743156306846,19.66286562,130.81,130.71,43.28456562]
[1743156307047,27.76,130.79,130.74,7.6506]
[1743156307238,0.05574735,130.77,130.75,0.05183502]
[1743156307439,0.05574735,130.77,130.75,7.70193502]
[1743156307644,0.05574735,130.77,130.75,0.05183502]
[1743156307941,0.05574735,130.77,130.75,15.57640064]
[1743156308746,0.05574735,130.77,130.75,54.90302596]
[1743156308948,27.78,130.81,130.75,54.90302596]
[1743156309644,7.6483,130.79,130.75,54.90302596]
[1743156309845,27.76,130.82,130.76,119.08068083]
[1743156310144,0.05880895,130.78,130.76,119.08068083]
[1743156310639,0.05880895,130.78,130.76,119.13047567]
[1743156310849,7.70770895,130.78,130.77,31.30801647]
[1743156311046,27.76,130.83,130.77,31.30801647]
[1743156311649,7.6481,130.79,130.77,31.30801647]
[1743156311852,27.76,130.83,130.77,31.30801647]
[1743156312038,7.6485,130.78,130.77,0.05671636]
[1743156313151,0.05200081,130.79,130.77,15.58128198]
[1743156313453,0.05200081,130.79,130.77,23.23008198]
[1743156313652,7.6465,130.82,130.77,43.42128198]
[1743156313840,27.84,130.85,130.8,15.52456562]
[1743156314039,7.646,130.83,130.8,15.52456562]
[1743156314243,7.646,130.83,130.82,15.52456562]
[1743156316253,0.05843697,130.84,130.82,15.52456562]
[1743156317856,0.05843697,130.84,130.82,23.17076562]
[1743156319549,0.05843697,130.84,130.82,15.52456562]
[1743156320256,0.05843697,130.84,130.82,23.17066562]
[1743156321453,7.70353697,130.84,130.82,15.52456562]
[1743156321648,0.05843697,130.84,130.82,15.52456562]
[1743156321849,0.05843697,130.84,130.81,0.05140741]
[1743156322153,365.33019896,130.95,130.82,15.52456562]
[1743156322352,4.2073,130.92,130.85,15.52456562]
[1743156322958,4.2073,130.92,130.87,15.52456562]
[1743156323159,7.6418,130.9,130.87,23.16766562]
[1743156323357,7.6418,130.9,130.88,0.05171622]
[1743156323557,0.05735403,130.91,130.88,0.05171622]
[1743156324760,7.6421,130.89,130.88,0.05171622]
[1743156328864,7.6418,130.9,130.88,0.05171622]
[1743156329058,0.05735403,130.91,130.88,0.05171622]
[1743156329558,7.6421,130.89,130.88,0.05171622]
[1743156332567,7.6418,130.9,130.88,0.05171622]
[1743156332767,0.05735403,130.91,130.88,0.05171622]
[1743156332958,0.05735403,130.91,130.89,15.52456562]
[1743156333164,7.69855403,130.91,130.89,15.52456562]
[1743156333467,0.05735403,130.91,130.89,15.52456562]
[1743156333867,0.05735403,130.91,130.89,43.16456562]
[1743156334364,0.05735403,130.91,130.89,50.80636562]
[1743156335770,0.05735403,130.91,130.89,43.16456562]
[1743156336566,0.05735403,130.91,130.88,0.05171622]
[1743156336758,7.6421,130.89,130.88,0.05171622]
[1743156338160,7.6421,130.89,130.85,252.2]
[1743156338161,7.6438,130.86,130.85,252.2]
[1743156338365,27.66,130.88,130.83,31.30801647]
[1743156338663,7.645,130.84,130.83,31.30801647]
[1743156340480,7.69578367,130.85,130.83,31.30801647]
[1743156340666,0.05108367,130.85,130.83,31.30801647]
[1743156340863,7.645,130.84,130.83,28.05841647]
[1743156341067,9.6857,130.84,130.83,28.05841647]
[1743156341775,7.6456,130.83,130.82,0.05138753]
[1743156342271,9.686,130.84,130.82,0.05138753]
[1743156342469,0.05108367,130.85,130.83,15.52456562]
[1743156342864,2.1058,130.89,130.84,27.74]
[1743156343073,2.1058,130.89,130.85,15.52456562]
[1743156343273,29.8658,130.89,130.83,15.52456562]
[1743156343675,29.8658,130.89,130.81,43.28456562]
[1743156343873,0.0545793,130.86,130.84,0.05139398]
[1743156344269,7.6447,130.85,130.84,0.05139398]
[1743156345878,7.6462,130.82,130.81,43.28456562]
[1743156346064,7.6462,130.82,130.81,15.52456562]
[1743156346874,7.6459,130.83,130.81,15.52456562]
[1743156347072,0.05153698,130.83,130.82,7.6459]
[1743156347280,7.69763698,130.83,130.81,15.52456562]
[1743156348678,7.6462,130.82,130.81,15.52456562]
[1743156349982,0.05153698,130.83,130.81,15.52456562]
[1743156350377,7.6438,130.87,130.83,7.6454]
[1743156350580,7.6438,130.87,130.83,23.16996562]
[1743156350973,7.6439,130.86,130.83,23.16996562]
[1743156351169,2.0376,130.88,130.83,15.52456562]
[1743156351573,0.05444633,130.87,130.84,0.05654459]
[1743156352080,7.6442,130.86,130.84,0.05654459]
[1743156352478,0.05444633,130.87,130.84,0.05654459]
[1743156352781,0.05444633,130.87,130.85,7.6441]
[1743156352970,0.05444633,130.87,130.85,15.52456562]
[1743156353175,0.05444633,130.87,130.85,43.22456562]
[1743156353374,0.05444633,130.87,130.86,7.6438]
[1743156353573,7.6419,130.9,130.85,43.22456562]
[1743156353782,31.6775,130.93,130.87,15.52456562]
[1743156354586,7.6415,130.9,130.87,23.16746562]
[1743156354785,7.6415,130.9,130.89,0.05774922]
[1743156355388,0.0428321,130.91,130.85,43.22456562]
[1743156355589,0.0428321,130.91,130.85,15.52456562]
[1743156355788,27.7,130.9,130.85,15.52456562]
[1743156356392,7.6451,130.84,130.81,43.22456562]
[1743156356587,27.72,130.87,130.86,0.05551198]
[1743156356788,0.05748745,130.84,130.81,50.87086562]
[1743156356990,27.74,130.84,130.78,85.19478639]
[1743156357185,27.74,130.84,130.78,100.71935201]
[1743156357389,35.3853,130.84,130.8,15.52456562]
[1743156357690,27.76,130.86,130.8,15.52456562]
[1743156357884,0.05199282,130.84,130.82,0.05818038]
[1743156358088,7.646,130.83,130.82,0.05818038]
[1743156358491,27.76,130.83,130.79,23.24829292]
[1743156359185,7.6474,130.8,130.79,23.24829292]
[1743156360187,7.69921121,130.81,130.78,23.22938158]
[1743156360889,0.05211121,130.81,130.79,7.6479]
[1743156361890,7.69901121,130.81,130.78,23.22918158]
[1743156365699,0.05211121,130.81,130.78,23.22918158]
[1743156366291,0.05211121,130.81,130.78,0.05631596]
[1743156366497,27.7,130.8,130.78,0.05631596]
[1743156367708,7.6479,130.79,130.78,0.05631596]
[1743156368003,27.7,130.8,130.73,15.52456562]
[1743156368205,2.1517,130.79,130.73,15.52456562]
[1743156369007,15.52456562,130.86,130.77,15.52456562]
[1743156369305,32.0092,130.85,130.79,15.52456562]
[1743156369505,7.6468,130.81,130.79,15.52456562]
[1743156369905,7.6468,130.81,130.79,15.57860362]
[1743156370105,7.6474,130.8,130.79,0.054038]
[1743156370606,0.05639963,130.83,130.79,0.054038]
[1743156370809,7.6471,130.81,130.79,0.054038]
[1743156371498,7.6474,130.8,130.79,0.054038]
[1743156371699,27.7,130.81,130.75,27.7]
[1743156371904,7.65,130.76,130.73,15.52456562]
[1743156372100,27.76,130.78,130.71,267.72456562]
[1743156372304,27.76,130.77,130.71,252.2]
[1743156372612,7.6506,130.75,130.71,267.72456562]
[1743156372908,0.0588,130.75,130.73,0.05156774]
[1743156374805,7.6509,130.74,130.73,0.05156774]
[1743156375707,0.0588,130.75,130.73,0.05156774]
[1743156376110,364.0,130.84,130.74,24.77245832]
[1743156376303,27.78,130.83,130.74,24.77245832]
[1743156376706,27.78,130.83,130.75,27.78]
[1743156377014,2.1323,130.82,130.75,27.78]
[1743156377308,0.05086984,130.8,130.77,0.05733489]
[1743156377714,27.83086984,130.8,130.77,0.05733489]
[1743156378111,7.6479,130.79,130.77,0.05733489]
[1743156379015,0.05086984,130.8,130.77,0.05733489]
[1743156380417,7.6485,130.78,130.77,0.05733489]
[1743156383014,35.4485,130.78,130.77,0.05733489]
[1743156383622,7.6485,130.78,130.77,0.05733489]
[1743156384025,7.6508,130.75,130.71,279.98]
[1743156384217,2.0574,130.79,130.71,279.98]
[1743156384411,2.0574,130.79,130.71,252.2]
[1743156384924,2.0574,130.79,130.73,7.6512]
[1743156385221,7.6503,130.75,130.74,0.0556051]
[1743156386223,0.05406044,130.76,130.68,24.77245832]
[1743156386523,27.82,130.77,130.68,24.77245832]
[1743156387129,7.6524,130.72,130.69,7.6535]
[1743156387431,7.6524,130.72,130.71,0.0505909]
[1743156389826,27.86932417,130.74,130.71,0.0505909]
[1743156390218,35.52042417,130.74,130.71,7.7028909]
[1743156391725,7.70042417,130.74,130.71,7.7028909]
[1743156392030,0.04932417,130.74,130.72,7.652]
[1743156392222,0.04932417,130.74,130.71,0.0505909]
[1743156392428,7.70052417,130.74,130.71,7.7028909]
[1743156392833,7.70052417,130.74,130.71,23.18541675]
[1743156393429,7.70052417,130.74,130.73,15.48252585]
[1743156393430,0.04932417,130.74,130.73,15.48252585]
[1743156394031,0.04932417,130.74,130.73,23.13392585]
[1743156394634,0.04932417,130.74,130.71,15.53311675]
[1743156395236,7.70052417,130.74,130.71,23.18531675]
[1743156396129,0.04932417,130.74,130.72,7.652]
[1743156397137,7.70022417,130.74,130.72,7.652]
[1743156397337,0.04932417,130.74,130.72,7.652]
[1743156398938,0.04932417,130.74,130.73,7.6514]
[1743156399134,0.04932417,130.74,130.73,23.13392585]
[1743156399932,2.0574,130.79,130.73,23.13392585]
[1743156399933,15.48252585,130.82,130.76,7.6495]
[1743156400134,27.72,130.81,130.76,7.6495]
[1743156400434,7.6485,130.79,130.76,7.6495]
[1743156400644,27.72,130.81,130.75,23.13252585]
[1743156401244,0.05529749,130.79,130.77,0.05825092]
[1743156401536,7.70349749,130.79,130.77,0.05825092]
[1743156402243,7.70349749,130.79,130.77,7.70725092]
[1743156403638,0.05529749,130.79,130.78,7.6485]
[1743156406444,7.6485,130.78,130.77,0.05825092]
[1743156408643,0.05529749,130.79,130.77,0.05825092]
[1743156409743,0.05529749,130.79,130.77,7.70705092]
[1743156410746,7.70329749,130.79,130.77,7.70705092]
[1743156411643,0.05529749,130.79,130.78,7.6485]
[1743156417554,0.05529749,130.79,130.78,35.2285]
[1743156422464,0.05529749,130.79,130.77,23.18987677]
[1743156422761,0.05529749,130.79,130.77,15.54077677]
[1743156422964,0.05529749,130.79,130.78,7.6485]
[1743156427767,2.0282,130.85,130.77,15.54077677]
[1743156428066,7.6453,130.84,130.8,15.48252585]
[1743156428863,0.05701882,130.83,130.81,0.05076987]
[1743156429069,0.05701882,130.83,130.82,15.48252585]
[1743156429562,0.05701882,130.83,130.82,23.12872585]
[1743156430765,0.05701882,130.83,130.81,35.19726987]
[1743156431165,0.05701882,130.83,130.81,0.05076987]
[1743156431862,7.6462,130.82,130.81,0.05076987]
[1743156432562,7.70281882,130.83,130.81,0.05076987]
[1743156433371,7.6462,130.82,130.81,0.05076987]
[1743156435565,7.70281882,130.83,130.81,0.05076987]
[1743156435767,0.05701882,130.83,130.81,0.05076987]
[1743156436172,7.70291882,130.83,130.81,0.05076987]
[1743156436774,0.05701882,130.83,130.81,7.69746987]
[1743156438476,0.05701882,130.83,130.82,7.6462]
[1743156440072,0.05701882,130.83,130.82,23.12872585]
[1743156442884,0.05701882,130.83,130.82,17.53912169]
[1743156444378,2.0695,130.89,130.82,9.89292169]
[1743156444577,2.0695,130.89,130.87,9.89292169]
[1743156444983,9.712,130.89,130.87,9.89292169]
[1743156445481,0.05583054,130.89,130.88,9.89292169]
[1743156445985,2.1021,130.94,130.92,9.89292169]
[1743156446277,2.1021,130.94,130.93,9.89292169]
[1743156446480,2.1021,130.94,130.91,9.89292169]
[1743156446686,2.1021,130.94,130.9,9.89292169]
[1743156447073,0.0548499,130.93,130.91,0.05297514]
[1743156447677,7.6948499,130.93,130.91,9.94589683]
[1743156448979,0.0548499,130.93,130.91,0.05297514]
[1743156450581,0.0548499,130.93,130.87,27.44]
[1743156450973,7.6423,130.89,130.87,27.44]
[1743156451579,7.6418,130.9,130.87,27.44]
[1743156451875,0.05463768,130.89,130.88,15.43780679]
[1743156452077,4.171,130.94,130.88,15.43780679]
[1743156452274,0.05119883,130.9,130.88,15.43780679]
[1743156452787,0.05119883,130.9,130.88,23.13248435]
[1743156453088,2.0541,130.94,130.88,15.49018435]
[1743156453387,2.0541,130.94,130.91,15.43780679]
[1743156453887,7.6409,130.91,130.9,27.44]
[1743156454783,0.05408778,130.92,130.9,27.44]
[1743156454984,0.05408778,130.92,130.91,15.43780679]
[1743156455583,0.05408778,130.92,130.91,23.07870679]
[1743156455783,0.05408778,130.92,130.91,15.43780679]
[1743156456586,7.6383,130.96,130.91,15.43780679]
[1743156456774,7.6383,130.96,130.93,15.43780679]
[1743156456979,7.6383,130.96,130.93,42.85780679]
[1743156457180,2.1007,130.98,130.93,42.85780679]
[1743156457181,7.6377,130.97,130.93,42.85780679]
[1743156457379,2.1007,130.98,130.93,42.85780679]
[1743156457577,0.05178999,130.97,130.94,0.05153904]
[1743156457888,7.638,130.96,130.94,0.05153904]
[1743156458091,0.05178999,130.97,130.94,0.05153904]
[1743156458588,7.6386,130.95,130.94,0.05153904]
[1743156459991,7.6383,130.96,130.94,0.05153904]
[1743156460891,7.6386,130.95,130.94,0.05153904]
[1743156462889,7.6383,130.96,130.94,0.05153904]
[1743156463190,7.6383,130.96,130.94,15.48934583]
[1743156463591,7.6386,130.95,130.94,15.48934583]
[1743156464290,7.6386,130.95,130.94,0.05153904]
[1743156466881,0.05178999,130.97,130.94,15.48934583]
[1743156467092,0.05178999,130.97,130.94,42.94934583]
[1743156467292,0.05178999,130.97,130.95,7.6383]
[1743156470294,0.05178999,130.97,130.96,7.638]
[1743156470995,0.05178999,130.97,130.95,7.6383]
[1743156471496,0.05178999,130.97,130.96,7.638]
[1743156471797,0.05178999,130.97,130.96,23.07580679]
[1743156472196,0.05178999,130.97,130.96,15.43780679]
[1743156473097,0.05178999,130.97,130.96,23.07580679]
[1743156473498,0.05178999,130.97,130.96,15.43780679]
[1743156474097,0.05178999,130.97,130.96,23.07580679]
[1743156474298,0.05178999,130.97,130.96,15.43780679]
[1743156476797,0.05178999,130.97,130.96,23.07580679]
[1743156477100,0.05178999,130.97,130.96,15.43780679]
[1743156477790,7.68918999,130.97,130.96,15.43780679]
[1743156478102,0.05178999,130.97,130.96,15.43780679]
[1743156480704,2.0035,131.05,130.96,38.51561358]
[1743156480898,2.0035,131.05,131.03,9.86474318]
[1743156481301,7.6337,131.04,131.03,9.86474318]
[1743156483011,2.05522975,131.05,131.02,0.05873894]
[1743156484002,7.6336,131.04,131.02,0.05873894]
[1743156484498,2.05522975,131.05,131.02,0.05873894]
[1743156486304,0.05172975,131.05,131.02,0.05873894]
[1743156487398,7.6336,131.04,131.02,7.69303894]
[1743156487602,0.05172975,131.05,131.03,15.41429542]
[1743156488212,7.68472975,131.05,131.03,15.41429542]
[1743156489412,2.104,131.09,131.04,27.46]
[1743156489608,2.0025,131.11,131.08,15.41429542]
[1743156490010,2.0025,131.11,131.06,15.41429542]
[1743156490517,9.632,131.11,131.07,0.05614365]
[1743156491208,9.632,131.11,131.07,7.68744365]
[1743156491805,7.6299,131.1,131.07,0.05614365]
[1743156492012,2.0025,131.11,131.07,0.05614365]
[1743156492313,7.6305,131.09,131.07,0.05614365]
[1743156493316,7.6302,131.1,131.07,0.05614365]
[1743156493520,2.0025,131.11,131.07,0.05614365]
[1743156493823,7.6305,131.09,131.07,0.05614365]
[1743156494608,7.6301,131.1,131.07,0.05614365]
[1743156494913,2.0025,131.11,131.07,0.05614365]
[1743156495820,7.6305,131.09,131.07,0.05614365]
[1743156497318,7.631,131.08,131.07,0.05614365]
[1743156498121,7.6307,131.09,131.07,0.05614365]
[1743156498522,2.0025,131.11,131.07,0.05614365]
[1743156500226,7.6309,131.09,131.07,0.05614365]
[1743156501025,7.631,131.08,131.07,0.05614365]
[1743156501825,7.6307,131.09,131.07,7.68774365]
[1743156502028,7.6307,131.09,131.07,0.05614365]
[1743156502333,2.0025,131.11,131.08,15.41429542]
[1743156502625,2.0025,131.11,131.1,15.41429542]
[1743156502924,2.0025,131.11,131.1,9.85315998]
[1743156503424,2.0025,131.11,131.09,9.85315998]
[1743156504121,7.6302,131.1,131.09,9.85315998]
[1743156509940,9.6318,131.11,131.09,9.85315998]
[1743156510241,9.6318,131.11,131.1,9.85315998]
[1743156510242,2.0025,131.11,131.1,9.85315998]
[1743156510629,9.6318,131.11,131.1,9.85315998]
[1743156510834,27.4,131.15,131.1,9.85315998]
[1743156511038,29.3687,131.15,131.11,9.85315998]
[1743156511243,29.3687,131.15,131.11,9.90695616]
[1743156512147,7.6287,131.12,131.11,9.90695616]
[1743156513138,7.6284,131.13,131.11,9.90695616]
[1743156513345,7.6284,131.13,131.12,9.85315998]
[1743156514439,7.6287,131.12,131.11,9.90695616]
[1743156514738,29.5006,131.15,131.11,17.53575616]
[1743156514939,7.6278,131.14,131.13,9.85315998]
[1743156519248,7.6273,131.15,131.13,9.85315998]
[1743156519449,7.6273,131.15,131.14,9.85315998]
[1743156527157,7.6275,131.14,131.13,9.85315998]
[1743156527358,2.0037,131.16,131.12,9.85315998]
[1743156527856,7.6281,131.13,131.12,9.85315998]
[1743156534658,7.6279,131.14,131.12,9.85315998]
[1743156534858,7.6279,131.14,131.13,9.85315998]
[1743156536459,2.0037,131.16,131.13,9.85315998]
[1743156536853,7.6275,131.14,131.13,9.85315998]
[1743156539557,9.85315998,131.22,131.13,37.23315998]
[1743156539754,9.85315998,131.22,131.17,9.85315998]
[1743156539960,7.6242,131.2,131.17,9.85315998]
[1743156540257,9.85315998,131.22,131.17,9.85315998]
[1743156540467,7.6255,131.18,131.16,0.05793111]
[1743156540959,7.6271,131.15,131.13,9.85315998]
[1743156541552,27.38,131.16,131.13,9.85315998]
[1743156542160,35.06045211,131.16,131.13,9.90362891]
[1743156542668,7.627,131.15,131.13,9.90362891]
[1743156543464,27.43365211,131.16,131.14,9.85315998]
[1743156543661,27.43365211,131.16,131.13,9.90362891]
[1743156544056,7.6272,131.15,131.13,9.90362891]
[1743156544756,27.43365211,131.16,131.13,17.53162891]
[1743156544960,27.43365211,131.16,131.15,9.85315998]
[1743156545155,0.05365211,131.16,131.15,9.85315998]
[1743156545955,0.05365211,131.16,131.15,17.48005998]
[1743156546362,1.9714,131.19,131.18,7.6252]
[1743156546561,27.38,131.2,131.18,17.47835998]
[1743156546958,35.0042,131.2,131.18,9.85315998]
[1743156547561,35.0042,131.2,131.18,9.90724901]
[1743156547860,7.6246,131.19,131.18,0.05408903]
[1743156548662,7.6246,131.19,131.18,9.90724901]
[1743156548856,27.38,131.2,131.18,9.90724901]
[1743156549057,27.38,131.2,131.19,9.85315998]
[1743156549261,7.6238,131.21,131.19,9.85315998]
[1743156549462,29.4776,131.22,131.19,9.85315998]
[1743156549863,2.0976,131.22,131.2,9.85315998]
[1743156550361,2.0976,131.22,131.19,9.85315998]
[1743156550566,27.38,131.22,131.21,9.85315998]
[1743156550865,27.38,131.24,131.21,9.85315998]
[1743156551059,35.0017,131.24,131.23,9.85315998]
[1743156551666,7.6217,131.24,131.23,9.85315998]
[1743156553265,7.6229,131.22,131.21,9.91189454]
[1743156554154,1.9957,131.28,131.21,9.91189454]
[1743156554465,1.9957,131.28,131.25,9.85315998]
[1743156554766,1.9957,131.28,131.26,9.85315998]
[1743156556060,7.6195,131.28,131.27,9.85315998]
[1743156556262,29.5016,131.3,131.27,9.85315998]
[1743156556562,7.6188,131.29,131.27,9.85315998]
[1743156557060,1.9715,131.32,131.27,9.85315998]
[1743156557254,27.38,131.31,131.27,9.85315998]
[1743156557464,37.23315998,131.31,131.28,0.05122633]
[1743156557664,7.6188,131.29,131.28,0.05122633]
[1743156558562,9.85315998,131.29,131.23,9.85315998]
[1743156558870,2.1455,131.3,131.23,9.85315998]
[1743156558871,37.21315998,131.28,131.23,9.85315998]
[1743156559668,0.05697348,131.27,131.24,0.04884485]
[1743156559867,0.05697348,131.27,131.24,9.90200483]
[1743156560071,0.05697348,131.27,131.25,9.85315998]
[1743156560475,0.05697348,131.27,131.24,9.90200483]
[1743156560670,9.91013346,131.27,131.24,0.04884485]
[1743156561772,7.6211,131.25,131.24,0.04884485]
[1743156566383,7.6211,131.25,131.24,9.90200483]
[1743156567177,7.6211,131.25,131.24,0.04884485]
[1743156568074,17.47425998,131.25,131.24,0.04884485]
[1743156568270,7.6217,131.24,131.23,4.25]
[1743156570379,7.6223,131.23,131.22,20.86627897]
[1743156573585,7.6223,131.23,131.22,39.21627897]
[1743156578488,7.624,131.2,131.19,0.4531]
[1743156580188,7.68014763,131.21,131.19,0.4531]
[1743156580390,0.05644763,131.21,131.19,0.4531]
[1743156580590,7.624,131.2,131.19,0.4531]
[1743156581188,0.05644763,131.21,131.19,0.4531]
[1743156581988,7.68014763,131.21,131.19,0.4531]
[1743156582487,0.05644763,131.21,131.19,0.4531]
[1743156582691,0.05644763,131.21,131.19,17.93055998]
[1743156582984,0.05644763,131.21,131.2,9.85315998]
[1743156583691,0.05644763,131.21,131.2,17.47715998]
[1743156583887,27.36,131.26,131.2,9.85315998]
[1743156584091,27.36,131.26,131.23,9.85315998]
[1743156584895,27.41837268,131.26,131.23,9.90134085]
[1743156585283,7.6215,131.25,131.23,9.90134085]
[1743156586087,7.6217,131.24,131.23,0.04818087]
[1743156590791,7.6217,131.24,131.23,9.90134085]
[1743156592294,27.41837268,131.26,131.23,9.90134085]
[1743156592507,0.05837268,131.26,131.24,9.85315998]
[1743156594001,0.05837268,131.26,131.23,9.90134085]
[1743156594402,7.6217,131.24,131.23,9.90134085]
[1743156596507,0.05837268,131.26,131.23,9.90134085]
[1743156596703,0.05837268,131.26,131.25,9.85315998]
[1743156597101,7.67917268,131.26,131.25,9.85315998]